Department family,Entity,Date,Expense type,Expense area,Supplier,Transaction number,Amount
Department of Health,Leicestershire Partnership NHS Trust,01/12/20,Service User Activities / Services,PAVE,LEICS CONSTABULARY,2005590,25300.00
Department of Health,Leicestershire Partnership NHS Trust,01/12/20,Leased / Hired Vehicles,Autism,AUTOMOTIVE LEASING LTD,507632464,728.96
Department of Health,Leicestershire Partnership NHS Trust,01/12/20,Prep_ LT1y -Prepayments Lease Cars,Balance Sheet Collection,AUTOMOTIVE LEASING LTD,507632464,30982.40
Department of Health,Leicestershire Partnership NHS Trust,01/12/20,Trade_Drs_LT1y -Charitable  Funds Contra Account,Balance Sheet Collection,AUTOMOTIVE LEASING LTD,507632464,30.00
Department of Health,Leicestershire Partnership NHS Trust,01/12/20,Trade_Drs_LT1y -Lease Cars Invoicing Contrl Ac.,Balance Sheet Collection,AUTOMOTIVE LEASING LTD,507632464,617.94
Department of Health,Leicestershire Partnership NHS Trust,01/12/20,Leased / Hired Vehicles,CHS Inpatient Management,AUTOMOTIVE LEASING LTD,507632464,5.00
Department of Health,Leicestershire Partnership NHS Trust,01/12/20,Leased / Hired Vehicles,COVID 19,AUTOMOTIVE LEASING LTD,507632464,472.36
Department of Health,Leicestershire Partnership NHS Trust,01/12/20,Leased / Hired Vehicles,CQUINN 5,AUTOMOTIVE LEASING LTD,507632464,10.00
Department of Health,Leicestershire Partnership NHS Trust,01/12/20,Leased / Hired Vehicles,Children’s Community Phlebotomy,AUTOMOTIVE LEASING LTD,507632464,10.00
Department of Health,Leicestershire Partnership NHS Trust,01/12/20,Leased / Hired Vehicles,City Planned Care - East,AUTOMOTIVE LEASING LTD,507632464,607.20
Department of Health,Leicestershire Partnership NHS Trust,01/12/20,Leased / Hired Vehicles,City Planned Care - West,AUTOMOTIVE LEASING LTD,507632464,682.10
Department of Health,Leicestershire Partnership NHS Trust,01/12/20,Leased / Hired Vehicles,City West CMHT MHSOP,AUTOMOTIVE LEASING LTD,507632464,10.00
Department of Health,Leicestershire Partnership NHS Trust,01/12/20,Leased / Hired Vehicles,Countywide Falls Service,AUTOMOTIVE LEASING LTD,507632464,5.00
Department of Health,Leicestershire Partnership NHS Trust,01/12/20,Leased / Hired Vehicles,East Planned Care - Blaby/Lutterworth,AUTOMOTIVE LEASING LTD,507632464,5.00
Department of Health,Leicestershire Partnership NHS Trust,01/12/20,Leased / Hired Vehicles,"East Planned Care - Melton,Syston,Rut - Therapy",AUTOMOTIVE LEASING LTD,507632464,13.23
Department of Health,Leicestershire Partnership NHS Trust,01/12/20,Leased / Hired Vehicles,"East Planned Care - Melton,Syston,Rutland",AUTOMOTIVE LEASING LTD,507632464,5.00
Department of Health,Leicestershire Partnership NHS Trust,01/12/20,Leased / Hired Vehicles,HIS Infrastructure,AUTOMOTIVE LEASING LTD,507632464,1299.28
Department of Health,Leicestershire Partnership NHS Trust,01/12/20,Leased / Hired Vehicles,Lead Nurse & Governance Team,AUTOMOTIVE LEASING LTD,507632464,330.00
Department of Health,Leicestershire Partnership NHS Trust,01/12/20,Leased / Hired Vehicles,MHSOP Medical Staffing,AUTOMOTIVE LEASING LTD,507632464,56.10
Department of Health,Leicestershire Partnership NHS Trust,01/12/20,Leased / Hired Vehicles,School Age Immunisation and Vaccinations,AUTOMOTIVE LEASING LTD,507632464,1233.36
Department of Health,Leicestershire Partnership NHS Trust,01/12/20,Leased / Hired Vehicles,West Planned Care - NWL Hub,AUTOMOTIVE LEASING LTD,507632464,462.00
Department of Health,Leicestershire Partnership NHS Trust,01/12/20,Crs_NHS_LT1y -Resus Inventory Supplied.,Balance Sheet Collection,SUPPLY CHAIN CO LTD,1121146690,32564.89
Department of Health,Leicestershire Partnership NHS Trust,01/12/20,Computer License  Fees,Information Services,PHOENIX SOFTWARE LTD,OP/I882758,70092.00
Department of Health,Leicestershire Partnership NHS Trust,01/12/20,Rent,Bridge Park Plaza - First Floor (LPT),RAYNSWAY PROPERTIES LTD,INV-1886,80507.52
Department of Health,Leicestershire Partnership NHS Trust,01/12/20,Other Non-Medical Supplies & Services,Inter Unit I & E Distribution,UHL NHS TRUST (RWE),L0246444,150820.00
Department of Health,Leicestershire Partnership NHS Trust,02/12/20,Payroll Deductions -Salary Sacrifice Cars Scheme,Balance Sheet Collection,TUSKER,43712,26455.89
Department of Health,Leicestershire Partnership NHS Trust,02/12/20,Computer License  Fees,Intergrated Information Team,SOFTCAT PLC,INV02763658,43354.09
Department of Health,Leicestershire Partnership NHS Trust,02/12/20,External Data Processing / Storage,Records & information Governance,H COATES LTD/TA C&V DATA,4003458,31906.65
Department of Health,Leicestershire Partnership NHS Trust,03/12/20,Nurse - Band 6 -Agency,AMH - Central Access Point,HCL NURSING,HNSI0000545,2505.48
Department of Health,Leicestershire Partnership NHS Trust,03/12/20,NURSE - BAND 2 - AGENCY,Acacia (Willows),HCL NURSING,HNSI0000545,174.73
Department of Health,Leicestershire Partnership NHS Trust,03/12/20,Nurse - Band 6 -Agency,Adult City East CMHT - Merlyn Vaz,HCL NURSING,HNSI0000545,2678.02
Department of Health,Leicestershire Partnership NHS Trust,03/12/20,Nurse - Band 6 -Agency,Adult County West Leicestershire CMHT,HCL NURSING,HNSI0000545,1069.97
Department of Health,Leicestershire Partnership NHS Trust,03/12/20,NURSE - BAND 2 - AGENCY,Agnes Unit Management,HCL NURSING,HNSI0000545,8156.30
Department of Health,Leicestershire Partnership NHS Trust,03/12/20,NURSE - BAND 5 - AGENCY,Agnes Unit Management,HCL NURSING,HNSI0000545,4594.01
Department of Health,Leicestershire Partnership NHS Trust,03/12/20,NURSE - BAND 2 - AGENCY,Ashby Ward (Bradgate Unit),HCL NURSING,HNSI0000545,679.08
Department of Health,Leicestershire Partnership NHS Trust,03/12/20,NURSE - BAND 5 - AGENCY,Ashby Ward (Bradgate Unit),HCL NURSING,HNSI0000545,329.84
Department of Health,Leicestershire Partnership NHS Trust,03/12/20,NURSE - BAND 2 - AGENCY,Aston Ward (Bradgate Unit),HCL NURSING,HNSI0000545,375.73
Department of Health,Leicestershire Partnership NHS Trust,03/12/20,NURSE - BAND 2 - AGENCY,Beaumont Ward - Bradgate Unit,HCL NURSING,HNSI0000545,1259.27
Department of Health,Leicestershire Partnership NHS Trust,03/12/20,NURSE - BAND 2 - AGENCY,Belvoir Psychiatric Intensive Care Unit,HCL NURSING,HNSI0000545,161.29
Department of Health,Leicestershire Partnership NHS Trust,03/12/20,NURSE - BAND 5 - AGENCY,Belvoir Psychiatric Intensive Care Unit,HCL NURSING,HNSI0000545,339.98
Department of Health,Leicestershire Partnership NHS Trust,03/12/20,Nurse - Band 6 -Agency,Crisis Resolution,HCL NURSING,HNSI0000545,3951.56
Department of Health,Leicestershire Partnership NHS Trust,03/12/20,NURSE - BAND 2 - AGENCY,Griffin Ward (HPC),HCL NURSING,HNSI0000545,388.06
Department of Health,Leicestershire Partnership NHS Trust,03/12/20,NURSE - BAND 5 - AGENCY,Griffin Ward (HPC),HCL NURSING,HNSI0000545,1222.21
Department of Health,Leicestershire Partnership NHS Trust,03/12/20,NURSE - BAND 2 - AGENCY,Heather Ward,HCL NURSING,HNSI0000545,937.02
Department of Health,Leicestershire Partnership NHS Trust,03/12/20,Nurse - Band 6 -Agency,Leicestershire Psych-oncology Service,HCL NURSING,HNSI0000545,641.98
Department of Health,Leicestershire Partnership NHS Trust,03/12/20,Nurse - Band 6 -Agency,Mental Health Triage Team,HCL NURSING,HNSI0000545,2903.83
Department of Health,Leicestershire Partnership NHS Trust,03/12/20,NURSE - BAND 2 - AGENCY,Mill Lodge,HCL NURSING,HNSI0000545,571.82
Department of Health,Leicestershire Partnership NHS Trust,03/12/20,NURSE - BAND 5 - AGENCY,Mill Lodge,HCL NURSING,HNSI0000545,932.58
Department of Health,Leicestershire Partnership NHS Trust,03/12/20,NURSE - BAND 2 - AGENCY,Phoenix Ward (HPC),HCL NURSING,HNSI0000545,562.72
Department of Health,Leicestershire Partnership NHS Trust,03/12/20,NURSE - BAND 5 - AGENCY,Phoenix Ward (HPC),HCL NURSING,HNSI0000545,329.84
Department of Health,Leicestershire Partnership NHS Trust,03/12/20,NURSE - BAND 2 - AGENCY,Watermead Ward (Bradgate Unit),HCL NURSING,HNSI0000545,174.73
Department of Health,Leicestershire Partnership NHS Trust,03/12/20,NURSE - BAND 5 - AGENCY,Watermead Ward (Bradgate Unit),HCL NURSING,HNSI0000545,346.74
Department of Health,Leicestershire Partnership NHS Trust,03/12/20,Nurse - Band 6 -Agency,CAMHS Waiting List Monies,HCL SOCIAL CARE,HWSI0000167,26179.29
Department of Health,Leicestershire Partnership NHS Trust,03/12/20,Computer Hardware,HIS Programme & Change,TRUSTMARQUE SOLUTIONS LTD,2309894,43146.00
Department of Health,Leicestershire Partnership NHS Trust,03/12/20,Med Trainees - FY1,Medical Trainees,UHL NHS TRUST (RWE),L0246470,25903.76
Department of Health,Leicestershire Partnership NHS Trust,04/12/20,Payroll Deductions -Home Electronics 50 Nov 20,Balance Sheet Collection,SME HCI LTD,133856,46018.70
Department of Health,Leicestershire Partnership NHS Trust,04/12/20,HR / Payroll Services,HR Employment Services,LINCOLNSHIRE PART NHSFT(RP7),2000020997,29360.83
Department of Health,Leicestershire Partnership NHS Trust,04/12/20,External Consultancy Fees,Medical Trainees,UNIVERSITY OF LEICESTER,2230115449,148995.00
Department of Health,Leicestershire Partnership NHS Trust,07/12/20,Unitary Payment,"The Agnes Unit (AKA Assessment and Treatment Centre) (P85, LPT)",ARDEN PARTNERSHIP (LEICESTER),SI0060,115653.43
Department of Health,Leicestershire Partnership NHS Trust,07/12/20,WIP Project Not in BS - Plant & Machinery,Work in Progress,ARDEN PARTNERSHIP (LEICESTER),SI0061,103873.16
Department of Health,Leicestershire Partnership NHS Trust,07/12/20,WIP Project Not in BS - Information Technology,Work in Progress,DELL COMPUTERS,7402665046,41880.00
Department of Health,Leicestershire Partnership NHS Trust,07/12/20,WIP Project Not in BS - Information Technology,Work in Progress,DELL COMPUTERS,7402665043,41880.00
Department of Health,Leicestershire Partnership NHS Trust,07/12/20,External Consultancy Fees,Medical Trainees,UNIVERSITY OF LEICESTER,2230115774,152680.00
Department of Health,Leicestershire Partnership NHS Trust,07/12/20,WIP Project Not in BS - Buildings excl Dwellings,Work in Progress,INTERSERVE CONSTRUCTION LTD,TMP01037,55166.89
Department of Health,Leicestershire Partnership NHS Trust,07/12/20,Crs_NHS_LT1y -Resus Inventory Supplied.,Balance Sheet Collection,SUPPLY CHAIN CO LTD,1121151475,32772.93
Department of Health,Leicestershire Partnership NHS Trust,07/12/20,Rent,"St Peters Health Center (Part 1st and 2nd floors) (P66, LPT)",LEICESTER LIFT CO,LEP1/SI0621,27433.45
Department of Health,Leicestershire Partnership NHS Trust,07/12/20,Course / Training Expenses,Work Force Transformation,NHS WEST LEICS CCG (04V),7018301529,30000.00
Department of Health,Leicestershire Partnership NHS Trust,08/12/20,WIP Project Not in BS - Information Technology,Work in Progress,DELL COMPUTERS,7402665138,41880.00
Department of Health,Leicestershire Partnership NHS Trust,08/12/20,NURSE - BAND 2 - AGENCY,Beechwood Ward,HCL NURSING,HNSI0000542,642.93
Department of Health,Leicestershire Partnership NHS Trust,08/12/20,NURSE - BAND 5 - AGENCY,Beechwood Ward,HCL NURSING,HNSI0000542,1040.21
Department of Health,Leicestershire Partnership NHS Trust,08/12/20,NURSE - BAND 5 - AGENCY,City Planned Care - East,HCL NURSING,HNSI0000542,23064.81
Department of Health,Leicestershire Partnership NHS Trust,08/12/20,NURSE - BAND 5 - AGENCY,City Planned Care - West,HCL NURSING,HNSI0000542,11265.78
Department of Health,Leicestershire Partnership NHS Trust,08/12/20,Nurse - Band 6 -Agency,City West CMHT MHSOP,HCL NURSING,HNSI0000542,2116.22
Department of Health,Leicestershire Partnership NHS Trust,08/12/20,NURSE - BAND 2 - AGENCY,Clarendon Ward,HCL NURSING,HNSI0000542,628.33
Department of Health,Leicestershire Partnership NHS Trust,08/12/20,NURSE - BAND 5 - AGENCY,Clarendon Ward,HCL NURSING,HNSI0000542,329.84
Department of Health,Leicestershire Partnership NHS Trust,08/12/20,NURSE - BAND 2 - AGENCY,Coalville Snibston Ward,HCL NURSING,HNSI0000542,420.51
Department of Health,Leicestershire Partnership NHS Trust,08/12/20,NURSE - BAND 2 - AGENCY,Coalville Ward 2,HCL NURSING,HNSI0000542,180.17
Department of Health,Leicestershire Partnership NHS Trust,08/12/20,NURSE - BAND 2 - AGENCY,Coleman Ward,HCL NURSING,HNSI0000542,1545.92
Department of Health,Leicestershire Partnership NHS Trust,08/12/20,NURSE - BAND 5 - AGENCY,Coleman Ward,HCL NURSING,HNSI0000542,4062.51
Department of Health,Leicestershire Partnership NHS Trust,08/12/20,NURSE - BAND 5 - AGENCY,Dalgliesh Ward,HCL NURSING,HNSI0000542,693.44
Department of Health,Leicestershire Partnership NHS Trust,08/12/20,NURSE - BAND 2 - AGENCY,Gwendolen Ward,HCL NURSING,HNSI0000542,3057.71
Department of Health,Leicestershire Partnership NHS Trust,08/12/20,NURSE - BAND 5 - AGENCY,Gwendolen Ward,HCL NURSING,HNSI0000542,3508.29
Department of Health,Leicestershire Partnership NHS Trust,08/12/20,NURSE - BAND 2 - AGENCY,H&B Comm Hosp East Ward,HCL NURSING,HNSI0000542,1155.85
Department of Health,Leicestershire Partnership NHS Trust,08/12/20,NURSE - BAND 5 - AGENCY,H&B Comm Hosp East Ward,HCL NURSING,HNSI0000542,5063.48
Department of Health,Leicestershire Partnership NHS Trust,08/12/20,NURSE - BAND 2 - AGENCY,H&B Comm Hosp North Ward,HCL NURSING,HNSI0000542,459.80
Department of Health,Leicestershire Partnership NHS Trust,08/12/20,NURSE - BAND 2 - AGENCY,Kirby Ward,HCL NURSING,HNSI0000542,326.10
Department of Health,Leicestershire Partnership NHS Trust,08/12/20,NURSE - BAND 5 - AGENCY,Lough Swithland Ward,HCL NURSING,HNSI0000542,844.69
Department of Health,Leicestershire Partnership NHS Trust,08/12/20,NURSE - BAND 5 - AGENCY,Rutland Ward Nursing,HCL NURSING,HNSI0000542,329.84
Department of Health,Leicestershire Partnership NHS Trust,08/12/20,NURSE - BAND 2 - AGENCY,St Lukes Stroke Ward,HCL NURSING,HNSI0000542,1160.97
Department of Health,Leicestershire Partnership NHS Trust,08/12/20,NURSE - BAND 2 - AGENCY,St Lukes Ward 3,HCL NURSING,HNSI0000542,213.26
Department of Health,Leicestershire Partnership NHS Trust,08/12/20,NURSE - BAND 5 - AGENCY,St Lukes Ward 3,HCL NURSING,HNSI0000542,1063.19
Department of Health,Leicestershire Partnership NHS Trust,08/12/20,NURSE - BAND 2 - AGENCY,Wakerley Ward,HCL NURSING,HNSI0000542,1115.53
Department of Health,Leicestershire Partnership NHS Trust,08/12/20,NURSE - BAND 5 - AGENCY,Wakerley Ward,HCL NURSING,HNSI0000542,3660.34
Department of Health,Leicestershire Partnership NHS Trust,08/12/20,NURSE - BAND 2 - AGENCY,Welford Ward,HCL NURSING,HNSI0000542,631.47
Department of Health,Leicestershire Partnership NHS Trust,09/12/20,WIP Project Not in BS - Information Technology,Work in Progress,DELL COMPUTERS,7402665350,41880.00
Department of Health,Leicestershire Partnership NHS Trust,10/12/20,Nurse - Band 6 -Agency,AMH - Central Access Point,HCL NURSING,HNSI0000541,1271.12
Department of Health,Leicestershire Partnership NHS Trust,10/12/20,NURSE - BAND 2 - AGENCY,Acacia (Willows),HCL NURSING,HNSI0000541,426.52
Department of Health,Leicestershire Partnership NHS Trust,10/12/20,Nurse - Band 6 -Agency,Adult City East CMHT - Merlyn Vaz,HCL NURSING,HNSI0000541,4554.41
Department of Health,Leicestershire Partnership NHS Trust,10/12/20,Nurse - Band 6 -Agency,Adult County Charnwood CMHT - Loughborough Base,HCL NURSING,HNSI0000541,1069.97
Department of Health,Leicestershire Partnership NHS Trust,10/12/20,Nurse - Band 6 -Agency,Adult County West Leicestershire CMHT,HCL NURSING,HNSI0000541,1069.97
Department of Health,Leicestershire Partnership NHS Trust,10/12/20,NURSE - BAND 2 - AGENCY,Agnes Unit Management,HCL NURSING,HNSI0000541,3643.49
Department of Health,Leicestershire Partnership NHS Trust,10/12/20,NURSE - BAND 5 - AGENCY,Agnes Unit Management,HCL NURSING,HNSI0000541,4807.81
Department of Health,Leicestershire Partnership NHS Trust,10/12/20,NURSE - BAND 2 - AGENCY,Ashby Ward (Bradgate Unit),HCL NURSING,HNSI0000541,1012.22
Department of Health,Leicestershire Partnership NHS Trust,10/12/20,NURSE - BAND 5 - AGENCY,Ashby Ward (Bradgate Unit),HCL NURSING,HNSI0000541,339.98
Department of Health,Leicestershire Partnership NHS Trust,10/12/20,NURSE - BAND 2 - AGENCY,Aston Ward (Bradgate Unit),HCL NURSING,HNSI0000541,570.22
Department of Health,Leicestershire Partnership NHS Trust,10/12/20,NURSE - BAND 2 - AGENCY,Beaumont Ward - Bradgate Unit,HCL NURSING,HNSI0000541,1412.47
Department of Health,Leicestershire Partnership NHS Trust,10/12/20,NURSE - BAND 5 - AGENCY,Beaumont Ward - Bradgate Unit,HCL NURSING,HNSI0000541,329.84
Department of Health,Leicestershire Partnership NHS Trust,10/12/20,NURSE - BAND 2 - AGENCY,Belvoir Psychiatric Intensive Care Unit,HCL NURSING,HNSI0000541,991.35
Department of Health,Leicestershire Partnership NHS Trust,10/12/20,NURSE - BAND 5 - AGENCY,Belvoir Psychiatric Intensive Care Unit,HCL NURSING,HNSI0000541,989.51
Department of Health,Leicestershire Partnership NHS Trust,10/12/20,Nurse - Band 6 -Agency,Crisis Resolution,HCL NURSING,HNSI0000541,1496.56
Department of Health,Leicestershire Partnership NHS Trust,10/12/20,NURSE - BAND 2 - AGENCY,Griffin Ward (HPC),HCL NURSING,HNSI0000541,887.21
Department of Health,Leicestershire Partnership NHS Trust,10/12/20,NURSE - BAND 5 - AGENCY,Griffin Ward (HPC),HCL NURSING,HNSI0000541,2144.26
Department of Health,Leicestershire Partnership NHS Trust,10/12/20,NURSE - BAND 2 - AGENCY,Heather Ward,HCL NURSING,HNSI0000541,1671.24
Department of Health,Leicestershire Partnership NHS Trust,10/12/20,Nurse - Band 6 -Agency,Leicestershire Psych-oncology Service,HCL NURSING,HNSI0000541,427.99
Department of Health,Leicestershire Partnership NHS Trust,10/12/20,Nurse - Band 6 -Agency,Mental Health Triage Team,HCL NURSING,HNSI0000541,3022.88
Department of Health,Leicestershire Partnership NHS Trust,10/12/20,NURSE - BAND 2 - AGENCY,Mill Lodge,HCL NURSING,HNSI0000541,225.12
Department of Health,Leicestershire Partnership NHS Trust,10/12/20,NURSE - BAND 2 - AGENCY,Phoenix Ward (HPC),HCL NURSING,HNSI0000541,174.73
Department of Health,Leicestershire Partnership NHS Trust,10/12/20,NURSE - BAND 2 - AGENCY,Stewart House,HCL NURSING,HNSI0000541,373.42
Department of Health,Leicestershire Partnership NHS Trust,11/12/20,WIP Project Not in BS - Information Technology,Work in Progress,DELL COMPUTERS,7402665042,41880.00
Department of Health,Leicestershire Partnership NHS Trust,14/12/20,PropCo Estates Management,Estates & Facilities Central,NHS PROPERTY SERVICES LTD,NAVSC05045,-215021.18
Department of Health,Leicestershire Partnership NHS Trust,14/12/20,Crs_NHS_LT1y -Resus Inventory Supplied.,Balance Sheet Collection,SUPPLY CHAIN CO LTD,1121156236,38622.18
Department of Health,Leicestershire Partnership NHS Trust,14/12/20,PropCo Estates Management,Estates & Facilities Central,NHS PROPERTY SERVICES LTD,NAVSC05046.,-122720.49
Department of Health,Leicestershire Partnership NHS Trust,14/12/20,PropCo Estates Management,Estates & Facilities Central,NHS PROPERTY SERVICES LTD,NAVSC05047.,-297869.23
Department of Health,Leicestershire Partnership NHS Trust,15/12/20,Insurance Costs,Chief Executives Office,NHS LITIGATION AUTHORITY,SICX404010,141476.10
Department of Health,Leicestershire Partnership NHS Trust,15/12/20,Network Costs - WAN Maint,HIS Infrastructure,VIRGIN MEDIA BUSINESS,262421-175,41691.46
Department of Health,Leicestershire Partnership NHS Trust,15/12/20,Landline Telephone Rental / Calls,"Beaumont Leys Health Centre (P94, LPT)",VIRGIN MEDIA BUSINESS,853083001/004/1220,379.57
Department of Health,Leicestershire Partnership NHS Trust,15/12/20,Landline Telephone Rental / Calls,Belgrave Health Centre (CHP),VIRGIN MEDIA BUSINESS,853083001/004/1220,322.54
Department of Health,Leicestershire Partnership NHS Trust,15/12/20,Landline Telephone Rental / Calls,"Bennion Centre (including Forest Grange Day Unit) (P8, LPT)",VIRGIN MEDIA BUSINESS,853083001/004/1220,7.74
Department of Health,Leicestershire Partnership NHS Trust,15/12/20,Landline Telephone Rental / Calls,"Bradgate Unit (including Glenvale day Unit) (P7, LPT)",VIRGIN MEDIA BUSINESS,853083001/004/1220,9185.24
Department of Health,Leicestershire Partnership NHS Trust,15/12/20,Landline Telephone Rental / Calls,Braunstone Health and Social Care Centre (Part) (PROPCO),VIRGIN MEDIA BUSINESS,853083001/004/1220,1034.05
Department of Health,Leicestershire Partnership NHS Trust,15/12/20,Landline Telephone Rental / Calls,Bridge Park Plaza - First Floor (LPT),VIRGIN MEDIA BUSINESS,853083001/004/1220,4775.94
Department of Health,Leicestershire Partnership NHS Trust,15/12/20,Landline Telephone Rental / Calls,"Coalville Community Hospital (P138, LPT)",VIRGIN MEDIA BUSINESS,853083001/004/1220,1523.39
Department of Health,Leicestershire Partnership NHS Trust,15/12/20,Landline Telephone Rental / Calls,"Coalville Health Centre (P121, LPT)",VIRGIN MEDIA BUSINESS,853083001/004/1220,154.40
Department of Health,Leicestershire Partnership NHS Trust,15/12/20,Landline Telephone Rental / Calls,County Hall,VIRGIN MEDIA BUSINESS,853083001/004/1220,1180.12
Department of Health,Leicestershire Partnership NHS Trust,15/12/20,Landline Telephone Rental / Calls,Estates & Facilities Central,VIRGIN MEDIA BUSINESS,853083001/004/1220,5487.17
Department of Health,Leicestershire Partnership NHS Trust,15/12/20,Landline Telephone Rental / Calls,"Evington Centre (P6, LPT)",VIRGIN MEDIA BUSINESS,853083001/004/1220,1869.84
Department of Health,Leicestershire Partnership NHS Trust,15/12/20,Landline Telephone Rental / Calls,HIS,VIRGIN MEDIA BUSINESS,853083001/004/1220,3387.19
Department of Health,Leicestershire Partnership NHS Trust,15/12/20,Landline Telephone Rental / Calls,"Hawthorne Centre - Coalville (P14, LPT)",VIRGIN MEDIA BUSINESS,853083001/004/1220,572.51
Department of Health,Leicestershire Partnership NHS Trust,15/12/20,Landline Telephone Rental / Calls,Hinckley & District Hospital (PROPCO),VIRGIN MEDIA BUSINESS,853083001/004/1220,1222.57
Department of Health,Leicestershire Partnership NHS Trust,15/12/20,Landline Telephone Rental / Calls,"Hinckley and Bosworth Community Hospital (Sunnyside) (P133, LPT)",VIRGIN MEDIA BUSINESS,853083001/004/1220,1178.90
Department of Health,Leicestershire Partnership NHS Trust,15/12/20,Landline Telephone Rental / Calls,Hood Park Leisure Centre Clinic,VIRGIN MEDIA BUSINESS,853083001/004/1220,23.22
Department of Health,Leicestershire Partnership NHS Trust,15/12/20,Landline Telephone Rental / Calls,"Hynca Lodge (P33, LPT)",VIRGIN MEDIA BUSINESS,853083001/004/1220,379.92
Department of Health,Leicestershire Partnership NHS Trust,15/12/20,Landline Telephone Rental / Calls,"Legion House, Ashby",VIRGIN MEDIA BUSINESS,853083001/004/1220,53.77
Department of Health,Leicestershire Partnership NHS Trust,15/12/20,Landline Telephone Rental / Calls,Loughborough Health Centre (PROPCO),VIRGIN MEDIA BUSINESS,853083001/004/1220,7.12
Department of Health,Leicestershire Partnership NHS Trust,15/12/20,Landline Telephone Rental / Calls,"Loughborough Hospital (P136, LPT)",VIRGIN MEDIA BUSINESS,853083001/004/1220,4936.09
Department of Health,Leicestershire Partnership NHS Trust,15/12/20,Landline Telephone Rental / Calls,Mawson House (LPT),VIRGIN MEDIA BUSINESS,853083001/004/1220,561.16
Department of Health,Leicestershire Partnership NHS Trust,15/12/20,Landline Telephone Rental / Calls,Melbourne Centre (Pt Grnd flr) (PROPCO),VIRGIN MEDIA BUSINESS,853083001/004/1220,6.45
Department of Health,Leicestershire Partnership NHS Trust,15/12/20,Landline Telephone Rental / Calls,Melton Mowbray Hospital (previously St. Mary's) (PROPCO),VIRGIN MEDIA BUSINESS,853083001/004/1220,1810.89
Department of Health,Leicestershire Partnership NHS Trust,15/12/20,Landline Telephone Rental / Calls,Merlyn Vaz Centre (CHP),VIRGIN MEDIA BUSINESS,853083001/004/1220,1567.24
Department of Health,Leicestershire Partnership NHS Trust,15/12/20,Landline Telephone Rental / Calls,"Mett Centre (P49, LPT)",VIRGIN MEDIA BUSINESS,853083001/004/1220,78.44
Department of Health,Leicestershire Partnership NHS Trust,15/12/20,Landline Telephone Rental / Calls,NSPCC Training Cente,VIRGIN MEDIA BUSINESS,853083001/004/1220,159.96
Department of Health,Leicestershire Partnership NHS Trust,15/12/20,Landline Telephone Rental / Calls,New Parks Health Centre (PROPCO),VIRGIN MEDIA BUSINESS,853083001/004/1220,1573.19
Department of Health,Leicestershire Partnership NHS Trust,15/12/20,Landline Telephone Rental / Calls,"OSL House (P54, LPT)",VIRGIN MEDIA BUSINESS,853083001/004/1220,1073.47
Department of Health,Leicestershire Partnership NHS Trust,15/12/20,Landline Telephone Rental / Calls,"Orchard Resource Centre (P15, LPT)",VIRGIN MEDIA BUSINESS,853083001/004/1220,895.56
Department of Health,Leicestershire Partnership NHS Trust,15/12/20,Landline Telephone Rental / Calls,Pasley Road Health Centre (PROPCO),VIRGIN MEDIA BUSINESS,853083001/004/1220,164.87
Department of Health,Leicestershire Partnership NHS Trust,15/12/20,Landline Telephone Rental / Calls,"Prince Philip House (P96, LPT)",VIRGIN MEDIA BUSINESS,853083001/004/1220,1565.98
Department of Health,Leicestershire Partnership NHS Trust,15/12/20,Landline Telephone Rental / Calls,Rushey Mead Health Centre (PROPCO),VIRGIN MEDIA BUSINESS,853083001/004/1220,93.46
Department of Health,Leicestershire Partnership NHS Trust,15/12/20,Landline Telephone Rental / Calls,"Shepshed Health Centre (P123, LPT)",VIRGIN MEDIA BUSINESS,853083001/004/1220,8.94
Department of Health,Leicestershire Partnership NHS Trust,15/12/20,Landline Telephone Rental / Calls,"Springfield Road Health Centre (P92, LPT)",VIRGIN MEDIA BUSINESS,853083001/004/1220,407.12
Department of Health,Leicestershire Partnership NHS Trust,15/12/20,Landline Telephone Rental / Calls,"St Peters Health Center (Part 1st and 2nd floors) (P66, LPT)",VIRGIN MEDIA BUSINESS,853083001/004/1220,2072.92
Department of Health,Leicestershire Partnership NHS Trust,15/12/20,Landline Telephone Rental / Calls,"Stewart House (P61, LPT)",VIRGIN MEDIA BUSINESS,853083001/004/1220,7.74
Department of Health,Leicestershire Partnership NHS Trust,15/12/20,Landline Telephone Rental / Calls,"Swithland House - London Road 352 (P44, LPT)",VIRGIN MEDIA BUSINESS,853083001/004/1220,519.05
Department of Health,Leicestershire Partnership NHS Trust,15/12/20,Landline Telephone Rental / Calls,"The Cedars (P19, LPT)",VIRGIN MEDIA BUSINESS,853083001/004/1220,835.86
Department of Health,Leicestershire Partnership NHS Trust,15/12/20,Landline Telephone Rental / Calls,"The Willows - Cordelia Close (P22, LPT)",VIRGIN MEDIA BUSINESS,853083001/004/1220,457.67
Department of Health,Leicestershire Partnership NHS Trust,15/12/20,Landline Telephone Rental / Calls,Uppingham Road Health Centre (PROPCO),VIRGIN MEDIA BUSINESS,853083001/004/1220,236.67
Department of Health,Leicestershire Partnership NHS Trust,15/12/20,Landline Telephone Rental / Calls,"Valentine Centre (P3, LPT)",VIRGIN MEDIA BUSINESS,853083001/004/1220,2640.67
Department of Health,Leicestershire Partnership NHS Trust,15/12/20,Landline Telephone Rental / Calls,Warren Park Way 25 (PROPCO),VIRGIN MEDIA BUSINESS,853083001/004/1220,769.07
Department of Health,Leicestershire Partnership NHS Trust,15/12/20,Landline Telephone Rental / Calls,"Westcotes Group -Westcotes House (P78, LPT)",VIRGIN MEDIA BUSINESS,853083001/004/1220,1811.26
Department of Health,Leicestershire Partnership NHS Trust,15/12/20,Landline Telephone Rental / Calls,Westcotes Health Centre (CHP),VIRGIN MEDIA BUSINESS,853083001/004/1220,926.80
Department of Health,Leicestershire Partnership NHS Trust,15/12/20,Landline Telephone Rental / Calls,"Winstanley Drive Health Centre (P8, LPT)",VIRGIN MEDIA BUSINESS,853083001/004/1220,458.62
Department of Health,Leicestershire Partnership NHS Trust,15/12/20,WIP Project Not in BS - Information Technology,Work in Progress,DELL COMPUTERS,7402665617,41880.00
Department of Health,Leicestershire Partnership NHS Trust,15/12/20,Computer Hardware,HIS Programme & Change,DELL COMPUTERS,7402669087,35078.40
Department of Health,Leicestershire Partnership NHS Trust,15/12/20,NURSE - BAND 2 - AGENCY,Beechwood Ward,HCL NURSING,HNSI0000546,1633.11
Department of Health,Leicestershire Partnership NHS Trust,15/12/20,NURSE - BAND 5 - AGENCY,City Planned Care - East,HCL NURSING,HNSI0000546,19153.01
Department of Health,Leicestershire Partnership NHS Trust,15/12/20,NURSE - BAND 5 - AGENCY,City Planned Care - West,HCL NURSING,HNSI0000546,10942.97
Department of Health,Leicestershire Partnership NHS Trust,15/12/20,Nurse - Band 6 -Agency,City West CMHT MHSOP,HCL NURSING,HNSI0000546,2116.22
Department of Health,Leicestershire Partnership NHS Trust,15/12/20,NURSE - BAND 2 - AGENCY,Clarendon Ward,HCL NURSING,HNSI0000546,501.47
Department of Health,Leicestershire Partnership NHS Trust,15/12/20,NURSE - BAND 5 - AGENCY,Clarendon Ward,HCL NURSING,HNSI0000546,137.69
Department of Health,Leicestershire Partnership NHS Trust,15/12/20,NURSE - BAND 2 - AGENCY,Coalville Snibston Ward,HCL NURSING,HNSI0000546,338.52
Department of Health,Leicestershire Partnership NHS Trust,15/12/20,NURSE - BAND 2 - AGENCY,Coalville Ward 2,HCL NURSING,HNSI0000546,240.34
Department of Health,Leicestershire Partnership NHS Trust,15/12/20,NURSE - BAND 2 - AGENCY,Coalville Ward 4,HCL NURSING,HNSI0000546,110.78
Department of Health,Leicestershire Partnership NHS Trust,15/12/20,NURSE - BAND 5 - AGENCY,Coalville Ward 4,HCL NURSING,HNSI0000546,429.52
Department of Health,Leicestershire Partnership NHS Trust,15/12/20,NURSE - BAND 2 - AGENCY,Coleman Ward,HCL NURSING,HNSI0000546,1797.19
Department of Health,Leicestershire Partnership NHS Trust,15/12/20,NURSE - BAND 5 - AGENCY,Coleman Ward,HCL NURSING,HNSI0000546,4916.71
Department of Health,Leicestershire Partnership NHS Trust,15/12/20,NURSE - BAND 5 - AGENCY,Dalgliesh Ward,HCL NURSING,HNSI0000546,329.84
Department of Health,Leicestershire Partnership NHS Trust,15/12/20,NURSE - BAND 2 - AGENCY,Gwendolen Ward,HCL NURSING,HNSI0000546,703.82
Department of Health,Leicestershire Partnership NHS Trust,15/12/20,NURSE - BAND 5 - AGENCY,Gwendolen Ward,HCL NURSING,HNSI0000546,5388.02
Department of Health,Leicestershire Partnership NHS Trust,15/12/20,NURSE - BAND 2 - AGENCY,H&B Comm Hosp East Ward,HCL NURSING,HNSI0000546,3927.62
Department of Health,Leicestershire Partnership NHS Trust,15/12/20,NURSE - BAND 5 - AGENCY,H&B Comm Hosp East Ward,HCL NURSING,HNSI0000546,9136.13
Department of Health,Leicestershire Partnership NHS Trust,15/12/20,NURSE - BAND 2 - AGENCY,H&B Comm Hosp North Ward,HCL NURSING,HNSI0000546,928.00
Department of Health,Leicestershire Partnership NHS Trust,15/12/20,NURSE - BAND 5 - AGENCY,H&B Comm Hosp North Ward,HCL NURSING,HNSI0000546,1972.89
Department of Health,Leicestershire Partnership NHS Trust,15/12/20,NURSE - BAND 2 - AGENCY,Kirby Ward,HCL NURSING,HNSI0000546,201.66
Department of Health,Leicestershire Partnership NHS Trust,15/12/20,NURSE - BAND 2 - AGENCY,Rutland Ward Nursing,HCL NURSING,HNSI0000546,180.17
Department of Health,Leicestershire Partnership NHS Trust,15/12/20,NURSE - BAND 2 - AGENCY,St Lukes Stroke Ward,HCL NURSING,HNSI0000546,866.62
Department of Health,Leicestershire Partnership NHS Trust,15/12/20,NURSE - BAND 5 - AGENCY,St Lukes Stroke Ward,HCL NURSING,HNSI0000546,370.40
Department of Health,Leicestershire Partnership NHS Trust,15/12/20,NURSE - BAND 2 - AGENCY,Wakerley Ward,HCL NURSING,HNSI0000546,2100.35
Department of Health,Leicestershire Partnership NHS Trust,15/12/20,NURSE - BAND 5 - AGENCY,Wakerley Ward,HCL NURSING,HNSI0000546,5694.16
Department of Health,Leicestershire Partnership NHS Trust,15/12/20,NURSE - BAND 2 - AGENCY,Welford Ward,HCL NURSING,HNSI0000546,704.59
Department of Health,Leicestershire Partnership NHS Trust,15/12/20,NURSE - BAND 5 - AGENCY,Welford Ward,HCL NURSING,HNSI0000546,312.74
Department of Health,Leicestershire Partnership NHS Trust,15/12/20,NURSE - BAND 2 - AGENCY,Beechwood Ward,HCL NURSING,HNSI0000555,2107.13
Department of Health,Leicestershire Partnership NHS Trust,15/12/20,NURSE - BAND 5 - AGENCY,Beechwood Ward,HCL NURSING,HNSI0000555,873.74
Department of Health,Leicestershire Partnership NHS Trust,15/12/20,NURSE - BAND 5 - AGENCY,City Planned Care - East,HCL NURSING,HNSI0000555,17938.71
Department of Health,Leicestershire Partnership NHS Trust,15/12/20,NURSE - BAND 5 - AGENCY,City Planned Care - West,HCL NURSING,HNSI0000555,12748.07
Department of Health,Leicestershire Partnership NHS Trust,15/12/20,Nurse - Band 6 -Agency,City West CMHT MHSOP,HCL NURSING,HNSI0000555,3162.47
Department of Health,Leicestershire Partnership NHS Trust,15/12/20,NURSE - BAND 2 - AGENCY,Clarendon Ward,HCL NURSING,HNSI0000555,1420.95
Department of Health,Leicestershire Partnership NHS Trust,15/12/20,NURSE - BAND 5 - AGENCY,Clarendon Ward,HCL NURSING,HNSI0000555,467.53
Department of Health,Leicestershire Partnership NHS Trust,15/12/20,NURSE - BAND 2 - AGENCY,Coalville Snibston Ward,HCL NURSING,HNSI0000555,227.75
Department of Health,Leicestershire Partnership NHS Trust,15/12/20,NURSE - BAND 2 - AGENCY,Coalville Ward 2,HCL NURSING,HNSI0000555,371.53
Department of Health,Leicestershire Partnership NHS Trust,15/12/20,NURSE - BAND 2 - AGENCY,Coleman Ward,HCL NURSING,HNSI0000555,1307.64
Department of Health,Leicestershire Partnership NHS Trust,15/12/20,NURSE - BAND 5 - AGENCY,Coleman Ward,HCL NURSING,HNSI0000555,5986.04
Department of Health,Leicestershire Partnership NHS Trust,15/12/20,NURSE - BAND 5 - AGENCY,Gwendolen Ward,HCL NURSING,HNSI0000555,1825.73
Department of Health,Leicestershire Partnership NHS Trust,15/12/20,NURSE - BAND 2 - AGENCY,H&B Comm Hosp East Ward,HCL NURSING,HNSI0000555,4143.06
Department of Health,Leicestershire Partnership NHS Trust,15/12/20,NURSE - BAND 5 - AGENCY,H&B Comm Hosp East Ward,HCL NURSING,HNSI0000555,9981.30
Department of Health,Leicestershire Partnership NHS Trust,15/12/20,NURSE - BAND 2 - AGENCY,H&B Comm Hosp North Ward,HCL NURSING,HNSI0000555,2170.67
Department of Health,Leicestershire Partnership NHS Trust,15/12/20,NURSE - BAND 5 - AGENCY,H&B Comm Hosp North Ward,HCL NURSING,HNSI0000555,1226.86
Department of Health,Leicestershire Partnership NHS Trust,15/12/20,NURSE - BAND 5 - AGENCY,Kirby Ward,HCL NURSING,HNSI0000555,302.60
Department of Health,Leicestershire Partnership NHS Trust,15/12/20,NURSE - BAND 5 - AGENCY,Lough Swithland Ward,HCL NURSING,HNSI0000555,381.01
Department of Health,Leicestershire Partnership NHS Trust,15/12/20,NURSE - BAND 2 - AGENCY,St Lukes Stroke Ward,HCL NURSING,HNSI0000555,898.37
Department of Health,Leicestershire Partnership NHS Trust,15/12/20,NURSE - BAND 5 - AGENCY,St Lukes Stroke Ward,HCL NURSING,HNSI0000555,760.99
Department of Health,Leicestershire Partnership NHS Trust,15/12/20,Nurse - Band 6 -Agency,St Lukes Stroke Ward,HCL NURSING,HNSI0000555,2888.26
Department of Health,Leicestershire Partnership NHS Trust,15/12/20,NURSE - BAND 5 - AGENCY,St Lukes Ward 3,HCL NURSING,HNSI0000555,1698.33
Department of Health,Leicestershire Partnership NHS Trust,15/12/20,NURSE - BAND 2 - AGENCY,Wakerley Ward,HCL NURSING,HNSI0000555,1911.49
Department of Health,Leicestershire Partnership NHS Trust,15/12/20,NURSE - BAND 5 - AGENCY,Wakerley Ward,HCL NURSING,HNSI0000555,5067.61
Department of Health,Leicestershire Partnership NHS Trust,15/12/20,NURSE - BAND 2 - AGENCY,Welford Ward,HCL NURSING,HNSI0000555,390.94
Department of Health,Leicestershire Partnership NHS Trust,16/12/20,Gas,"Valentine Centre (P3, LPT)",CORONA ENERGY RETAIL 4 LTD,15685074,26574.28
Department of Health,Leicestershire Partnership NHS Trust,16/12/20,Nurse - Band 6 -Agency,AMH - Central Access Point,HCL NURSING,HNSI0000558,2803.06
Department of Health,Leicestershire Partnership NHS Trust,16/12/20,Nurse - Band 6 -Agency,Adult City East CMHT - Merlyn Vaz,HCL NURSING,HNSI0000558,2139.93
Department of Health,Leicestershire Partnership NHS Trust,16/12/20,Nurse - Band 6 -Agency,Adult County West Leicestershire CMHT,HCL NURSING,HNSI0000558,1069.97
Department of Health,Leicestershire Partnership NHS Trust,16/12/20,NURSE - BAND 2 - AGENCY,Agnes Unit Management,HCL NURSING,HNSI0000558,5342.43
Department of Health,Leicestershire Partnership NHS Trust,16/12/20,NURSE - BAND 5 - AGENCY,Agnes Unit Management,HCL NURSING,HNSI0000558,4961.75
Department of Health,Leicestershire Partnership NHS Trust,16/12/20,NURSE - BAND 2 - AGENCY,Ashby Ward (Bradgate Unit),HCL NURSING,HNSI0000558,1315.18
Department of Health,Leicestershire Partnership NHS Trust,16/12/20,NURSE - BAND 2 - AGENCY,Aston Ward (Bradgate Unit),HCL NURSING,HNSI0000558,366.94
Department of Health,Leicestershire Partnership NHS Trust,16/12/20,NURSE - BAND 5 - AGENCY,Aston Ward (Bradgate Unit),HCL NURSING,HNSI0000558,700.70
Department of Health,Leicestershire Partnership NHS Trust,16/12/20,NURSE - BAND 2 - AGENCY,Beaumont Ward - Bradgate Unit,HCL NURSING,HNSI0000558,912.18
Department of Health,Leicestershire Partnership NHS Trust,16/12/20,NURSE - BAND 2 - AGENCY,Belvoir Psychiatric Intensive Care Unit,HCL NURSING,HNSI0000558,524.19
Department of Health,Leicestershire Partnership NHS Trust,16/12/20,NURSE - BAND 5 - AGENCY,Belvoir Psychiatric Intensive Care Unit,HCL NURSING,HNSI0000558,392.91
Department of Health,Leicestershire Partnership NHS Trust,16/12/20,Nurse - Band 6 -Agency,Crisis Resolution,HCL NURSING,HNSI0000558,2986.81
Department of Health,Leicestershire Partnership NHS Trust,16/12/20,NURSE - BAND 2 - AGENCY,Griffin Ward (HPC),HCL NURSING,HNSI0000558,1263.74
Department of Health,Leicestershire Partnership NHS Trust,16/12/20,NURSE - BAND 5 - AGENCY,Griffin Ward (HPC),HCL NURSING,HNSI0000558,2304.26
Department of Health,Leicestershire Partnership NHS Trust,16/12/20,NURSE - BAND 2 - AGENCY,Heather Ward,HCL NURSING,HNSI0000558,739.07
Department of Health,Leicestershire Partnership NHS Trust,16/12/20,Nurse - Band 6 -Agency,Leicestershire Psych-oncology Service,HCL NURSING,HNSI0000558,427.99
Department of Health,Leicestershire Partnership NHS Trust,16/12/20,Nurse - Band 6 -Agency,Mental Health Triage Team,HCL NURSING,HNSI0000558,2998.02
Department of Health,Leicestershire Partnership NHS Trust,16/12/20,NURSE - BAND 2 - AGENCY,Phoenix Ward (HPC),HCL NURSING,HNSI0000558,113.29
Department of Health,Leicestershire Partnership NHS Trust,16/12/20,NURSE - BAND 2 - AGENCY,Place Of Safety Assessment Unit,HCL NURSING,HNSI0000558,603.32
Department of Health,Leicestershire Partnership NHS Trust,16/12/20,NURSE - BAND 2 - AGENCY,Stewart House,HCL NURSING,HNSI0000558,312.93
Department of Health,Leicestershire Partnership NHS Trust,16/12/20,NURSE - BAND 2 - AGENCY,Thornton Ward - Bradgate Unit,HCL NURSING,HNSI0000558,174.73
Department of Health,Leicestershire Partnership NHS Trust,16/12/20,NURSE - BAND 5 - AGENCY,Thornton Ward - Bradgate Unit,HCL NURSING,HNSI0000558,989.51
Department of Health,Leicestershire Partnership NHS Trust,16/12/20,NURSE - BAND 2 - AGENCY,Watermead Ward (Bradgate Unit),HCL NURSING,HNSI0000558,192.21
Department of Health,Leicestershire Partnership NHS Trust,16/12/20,NURSE - BAND 5 - AGENCY,Watermead Ward (Bradgate Unit),HCL NURSING,HNSI0000558,339.98
Department of Health,Leicestershire Partnership NHS Trust,18/12/20,FP10'S,Adult City Drugs,NHS BUS SERVICES AUTHORITY,1000067526,23051.75
Department of Health,Leicestershire Partnership NHS Trust,18/12/20,FP10'S,Adult County Drugs,NHS BUS SERVICES AUTHORITY,1000067526,30626.77
Department of Health,Leicestershire Partnership NHS Trust,18/12/20,FP10'S,Adult County North West Leicestershire CMHT,NHS BUS SERVICES AUTHORITY,1000067526,8.16
Department of Health,Leicestershire Partnership NHS Trust,18/12/20,FP10'S,CAMHS Outpatients,NHS BUS SERVICES AUTHORITY,1000067526,9840.95
Department of Health,Leicestershire Partnership NHS Trust,18/12/20,FP10'S,Children Services Medical,NHS BUS SERVICES AUTHORITY,1000067526,11787.21
Department of Health,Leicestershire Partnership NHS Trust,18/12/20,FP10'S,Dementia Related Drugs and Investigations,NHS BUS SERVICES AUTHORITY,1000067526,3521.25
Department of Health,Leicestershire Partnership NHS Trust,18/12/20,FP10'S,Eating Disorders Outpatient Service,NHS BUS SERVICES AUTHORITY,1000067526,898.32
Department of Health,Leicestershire Partnership NHS Trust,18/12/20,FP10'S,Evington Centre,NHS BUS SERVICES AUTHORITY,1000067526,1.74
Department of Health,Leicestershire Partnership NHS Trust,18/12/20,FP10'S,Forensic Services - Community,NHS BUS SERVICES AUTHORITY,1000067526,189.04
Department of Health,Leicestershire Partnership NHS Trust,18/12/20,FP10'S,LOROS Pharmacy,NHS BUS SERVICES AUTHORITY,1000067526,952.50
Department of Health,Leicestershire Partnership NHS Trust,18/12/20,FP10'S,Leicestershire Psych-oncology Service,NHS BUS SERVICES AUTHORITY,1000067526,48.24
Department of Health,Leicestershire Partnership NHS Trust,18/12/20,FP10'S,Liason Psychiatry Service,NHS BUS SERVICES AUTHORITY,1000067526,435.85
Department of Health,Leicestershire Partnership NHS Trust,18/12/20,FP10'S,Lough Swithland Ward,NHS BUS SERVICES AUTHORITY,1000067526,10.69
Department of Health,Leicestershire Partnership NHS Trust,18/12/20,FP10'S,PIER Team - Early Intervention Services,NHS BUS SERVICES AUTHORITY,1000067526,10708.40
Department of Health,Leicestershire Partnership NHS Trust,18/12/20,FP10'S,Rutland Ward Nursing,NHS BUS SERVICES AUTHORITY,1000067526,0.23
Department of Health,Leicestershire Partnership NHS Trust,18/12/20,FP10'S,Snr Med Staff (Inc Med Reps),NHS BUS SERVICES AUTHORITY,1000067526,4736.40
Department of Health,Leicestershire Partnership NHS Trust,18/12/20,Internal Printing (machines and ink),Estates & Facilities Central,LEXMARK INTERNATIONAL LTD,900650009531,33807.68
Department of Health,Leicestershire Partnership NHS Trust,21/12/20,Crs_NHS_LT1y -Resus Inventory Supplied.,Balance Sheet Collection,SUPPLY CHAIN CO LTD,1121161067,36214.13
Department of Health,Leicestershire Partnership NHS Trust,21/12/20,Med GP Trainees,Medical Trainees,ST.HELENS & KNOWSLEY NHS TRUST,16801672,75000.00
Department of Health,Leicestershire Partnership NHS Trust,21/12/20,Gas,"Beaumont Leys Health Centre (P94, LPT)",TOTAL GAS & POWER LTD,227061488/20,494.93
Department of Health,Leicestershire Partnership NHS Trust,21/12/20,Gas,"Bradgate Unit (including Glenvale day Unit) (P7, LPT)",TOTAL GAS & POWER LTD,227061488/20,12678.50
Department of Health,Leicestershire Partnership NHS Trust,21/12/20,Gas,Bridge Park Plaza - First Floor (LPT),TOTAL GAS & POWER LTD,227061488/20,995.64
Department of Health,Leicestershire Partnership NHS Trust,21/12/20,Gas,"Bridge Park Road - Units 2 and 3 (P148, LPT)",TOTAL GAS & POWER LTD,227061488/20,279.85
Department of Health,Leicestershire Partnership NHS Trust,21/12/20,Gas,"Coalville Community Hospital (P138, LPT)",TOTAL GAS & POWER LTD,227061488/20,5737.79
Department of Health,Leicestershire Partnership NHS Trust,21/12/20,Gas,"Coalville Health Centre (P121, LPT)",TOTAL GAS & POWER LTD,227061488/20,474.67
Department of Health,Leicestershire Partnership NHS Trust,21/12/20,Gas,"Evington Centre (P6, LPT)",TOTAL GAS & POWER LTD,227061488/20,760.27
Department of Health,Leicestershire Partnership NHS Trust,21/12/20,Gas,"Farm Lodge (P34, LPT)",TOTAL GAS & POWER LTD,227061488/20,169.15
Department of Health,Leicestershire Partnership NHS Trust,21/12/20,Gas,"Feilding Palmer Hospital (Lutterworth) (P131, LPT)",TOTAL GAS & POWER LTD,227061488/20,1430.47
Department of Health,Leicestershire Partnership NHS Trust,21/12/20,Gas,"Frith Cottages 3 & 4 (P36, LPT)",TOTAL GAS & POWER LTD,227061488/20,163.15
Department of Health,Leicestershire Partnership NHS Trust,21/12/20,Gas,HIS,TOTAL GAS & POWER LTD,227061488/20,528.22
Department of Health,Leicestershire Partnership NHS Trust,21/12/20,Gas,"Hawthorne Centre - Coalville (P14, LPT)",TOTAL GAS & POWER LTD,227061488/20,345.97
Department of Health,Leicestershire Partnership NHS Trust,21/12/20,Gas,"Hinckley and Bosworth Community Hospital (Sunnyside) (P133, LPT)",TOTAL GAS & POWER LTD,227061488/20,4567.82
Department of Health,Leicestershire Partnership NHS Trust,21/12/20,Gas,"Hynca Lodge (P33, LPT)",TOTAL GAS & POWER LTD,227061488/20,344.96
Department of Health,Leicestershire Partnership NHS Trust,21/12/20,Gas,"LGH - Gwendolen House (P4, LPT)",TOTAL GAS & POWER LTD,227061488/20,1133.38
Department of Health,Leicestershire Partnership NHS Trust,21/12/20,Gas,"Loughborough Hospital (P136, LPT)",TOTAL GAS & POWER LTD,227061488/20,28876.36
Department of Health,Leicestershire Partnership NHS Trust,21/12/20,Gas,Mawson House (LPT),TOTAL GAS & POWER LTD,227061488/20,42.24
Department of Health,Leicestershire Partnership NHS Trust,21/12/20,Gas,"Mett Centre (P49, LPT)",TOTAL GAS & POWER LTD,227061488/20,216.12
Department of Health,Leicestershire Partnership NHS Trust,21/12/20,Gas,"Narborough Health Centre (P117, LPT)",TOTAL GAS & POWER LTD,227061488/20,367.27
Department of Health,Leicestershire Partnership NHS Trust,21/12/20,Gas,"OSL House (P54, LPT)",TOTAL GAS & POWER LTD,227061488/20,777.52
Department of Health,Leicestershire Partnership NHS Trust,21/12/20,Gas,"Orchard Resource Centre (P15, LPT)",TOTAL GAS & POWER LTD,227061488/20,478.98
Department of Health,Leicestershire Partnership NHS Trust,21/12/20,Gas,"Rubicon Close 3 (P56, LPT)",TOTAL GAS & POWER LTD,227061488/20,57.16
Department of Health,Leicestershire Partnership NHS Trust,21/12/20,Gas,"Rutland Memorial Hospital (P134, LPT)",TOTAL GAS & POWER LTD,227061488/20,1444.81
Department of Health,Leicestershire Partnership NHS Trust,21/12/20,Gas,"Shepshed Health Centre (P123, LPT)",TOTAL GAS & POWER LTD,227061488/20,453.88
Department of Health,Leicestershire Partnership NHS Trust,21/12/20,Gas,"Springfield Road Health Centre (P92, LPT)",TOTAL GAS & POWER LTD,227061488/20,529.58
Department of Health,Leicestershire Partnership NHS Trust,21/12/20,Gas,"Stewart House (P61, LPT)",TOTAL GAS & POWER LTD,227061488/20,1771.07
Department of Health,Leicestershire Partnership NHS Trust,21/12/20,Gas,"Swithland House - London Road 352 (P44, LPT)",TOTAL GAS & POWER LTD,227061488/20,692.56
Department of Health,Leicestershire Partnership NHS Trust,21/12/20,Gas,"The Agnes Unit (AKA Assessment and Treatment Centre) (P85, LPT)",TOTAL GAS & POWER LTD,227061488/20,2334.73
Department of Health,Leicestershire Partnership NHS Trust,21/12/20,Gas,"The Cedars (P19, LPT)",TOTAL GAS & POWER LTD,227061488/20,246.52
Department of Health,Leicestershire Partnership NHS Trust,21/12/20,Gas,"The Grange 1 (P4, LPT)",TOTAL GAS & POWER LTD,227061488/20,189.76
Department of Health,Leicestershire Partnership NHS Trust,21/12/20,Gas,"The Grange 2 (P41, LPT)",TOTAL GAS & POWER LTD,227061488/20,185.29
Department of Health,Leicestershire Partnership NHS Trust,21/12/20,Gas,"The Willows - Cordelia Close (P22, LPT)",TOTAL GAS & POWER LTD,227061488/20,2714.33
Department of Health,Leicestershire Partnership NHS Trust,21/12/20,Gas,"Westcotes Group -Westcotes House (P78, LPT)",TOTAL GAS & POWER LTD,227061488/20,949.46
Department of Health,Leicestershire Partnership NHS Trust,21/12/20,Gas,"Winstanley Drive Health Centre (P8, LPT)",TOTAL GAS & POWER LTD,227061488/20,498.82
Department of Health,Leicestershire Partnership NHS Trust,21/12/20,Computer License  Fees,Information Services,PHOENIX SOFTWARE LTD,OP/I881542,28908.47
Department of Health,Leicestershire Partnership NHS Trust,24/12/20,WIP Project Not in BS - Information Technology,Work in Progress,DELL COMPUTERS,7402665348,41880.00
